[Event "Titled Tuesday Blitz May 24 Early 2022"]
[White "Ambartsumova, Karina"]
[Black "Shipov, Sergei"]
[WhiteFideId "4166299"]
[BlackFideId "4113624"]
[WhiteElo "2262"]
[BlackElo "2801"]
[Result "0-1"]
[Round "02"]
[TimeControl "180+1"]
[Date "2022.05.24"]
[WhiteClock "0:00:03"]
[BlackClock "0:01:16"]

1. d4 {[%clk 0:03:00]}  d5 {[%clk 0:02:56]} 2. Nf3 {[%clk 0:03:00]}  e6 {[%clk 0:02:56]} 3. c4 {[%clk 0:03:01]}  dxc4 {[%clk 0:02:55]} 4. Qa4+ {[%clk 0:02:54]}  c6 {[%clk 0:02:55]} 5. Qxc4 {[%clk 0:02:54]}  b5 {[%clk 0:02:55]} 6. Qc2 {[%clk 0:02:47]}  Bb7 {[%clk 0:02:55]} 7. Nc3 {[%clk 0:02:47]}  Nd7 {[%clk 0:02:55]} 8. Bf4 {[%clk 0:02:45]}  Rc8 {[%clk 0:02:51]} 9. e3 {[%clk 0:02:29]}  a6 {[%clk 0:02:50]} 10. Be2 {[%clk 0:02:23]}  c5 {[%clk 0:02:49]} 11. dxc5 {[%clk 0:01:59]}  Bxc5 {[%clk 0:02:48]} 12. O-O {[%clk 0:01:50]}  Ngf6 {[%clk 0:02:45]} 13. a3 {[%clk 0:01:45]}  O-O {[%clk 0:02:44]} 14. Rad1 {[%clk 0:01:34]}  Qb6 {[%clk 0:02:42]} 15. b4 {[%clk 0:01:14]}  Be7 {[%clk 0:02:36]} 16. Qb2 {[%clk 0:01:08]}  h6 {[%clk 0:02:32]} 17. h3 {[%clk 0:01:04]}  Rfd8 {[%clk 0:02:12]} 18. Rc1 {[%clk 0:01:04]}  Qa7 {[%clk 0:02:09]} 19. Rfd1 {[%clk 0:01:04]}  Qa8 {[%clk 0:02:08]} 20. Ne1 {[%clk 0:00:47]}  Nb6 {[%clk 0:02:08]} 21. Rxd8+ {[%clk 0:00:42]}  Bxd8 {[%clk 0:02:08]} 22. Be5 {[%clk 0:00:38]}  Nc4 {[%clk 0:02:06]} 23. Bxc4 {[%clk 0:00:36]}  Rxc4 {[%clk 0:02:07]} 24. Ne2 {[%clk 0:00:31]}  Qc8 {[%clk 0:01:56]} 25. Rxc4 {[%clk 0:00:22]}  Qxc4 {[%clk 0:01:57]} 26. Nf4 {[%clk 0:00:15]}  Be7 {[%clk 0:01:51]} 27. Nfd3 {[%clk 0:00:15]}  Qe4 {[%clk 0:01:43]} 28. Bd4 {[%clk 0:00:13]}  Qd5 {[%clk 0:01:34]} 29. Nc5 {[%clk 0:00:12]}  Bc8 {[%clk 0:01:33]} 30. Qc2 {[%clk 0:00:09]}  Ne8 {[%clk 0:01:31]} 31. Bb2 {[%clk 0:00:08]}  Nd6 {[%clk 0:01:29]} 32. e4 {[%clk 0:00:06]}  Qa2 {[%clk 0:01:26]} 33. Ncd3 {[%clk 0:00:04]}  Nc4 {[%clk 0:01:26]} 34. Qc3 {[%clk 0:00:03]}  f6 {[%clk 0:01:25]} 35. Bc1 {[%clk 0:00:03]}  Bb7 {[%clk 0:01:24]} 36. Nc5 {[%clk 0:00:03]}  Bxc5 {[%clk 0:01:23]} 37. bxc5 {[%clk 0:00:04]}  Bxe4 {[%clk 0:01:23]} 38. f3 {[%clk 0:00:03]}  Bd5 {[%clk 0:01:23]} 39. Nd3 {[%clk 0:00:03]}  Qe2 {[%clk 0:01:22]} 40. Nf4 {[%clk 0:00:03]}  Qd1+ {[%clk 0:01:22]} 41. Kh2 {[%clk 0:00:03]}  Kf7 {[%clk 0:01:22]} 42. Nxd5 {[%clk 0:00:02]}  Qxd5 {[%clk 0:01:22]} 43. Qb4 {[%clk 0:00:03]}  Qc6 {[%clk 0:01:22]} 44. a4 {[%clk 0:00:02]}  e5 {[%clk 0:01:20]} 45. h4 {[%clk 0:00:01]}  h5 {[%clk 0:01:18]} 46. axb5 {[%clk 0:00:02]}  Qxb5 {[%clk 0:01:18]} 47. Qxb5 {[%clk 0:00:01]}  axb5 {[%clk 0:01:18]} 48. g4 {[%clk 0:00:02]}  g6 {[%clk 0:01:17]} 49. Kg3 {[%clk 0:00:03]}  Ke6 {[%clk 0:01:18]} 50. Kf2 {[%clk 0:00:03]}  Kd5 {[%clk 0:01:18]} 51. Ke2 {[%clk 0:00:03]}  Kxc5 {[%clk 0:01:18]} 52. Bh6 {[%clk 0:00:03]}  Kd5 {[%clk 0:01:17]} 53. Bg7 {[%clk 0:00:03]}  f5 {[%clk 0:01:18]} 54. gxf5 {[%clk 0:00:03]}  gxf5 {[%clk 0:01:18]} 55. Kd3 {[%clk 0:00:04]}  Nd6 {[%clk 0:01:17]} 56. Kc3 {[%clk 0:00:04]}  f4 {[%clk 0:01:16]} 57. Bh8 {[%clk 0:00:03]}  Nf5 {[%clk 0:01:16]} 58. Bf6 {[%clk 0:00:03]}  Nd4 {[%clk 0:01:16]} 0-1


[Site "https://www.chess.com"]

[Event "Titled Tuesday Blitz May 24 Early 2022"]
[White "Amgalantengis, Enkh-Amgalan"]
[Black "Drygalov, Sergey"]
[WhiteFideId "4903536"]
[BlackFideId "24171743"]
[WhiteElo "1719"]
[BlackElo "2514"]
[Result "0-1"]
[Round "02"]
[TimeControl "180+1"]
[Date "2022.05.24"]
[WhiteClock "0:00:05"]
[BlackClock "0:00:16"]

1. d4 {[%clk 0:02:58]}  Nf6 {[%clk 0:02:58]} 2. c4 {[%clk 0:02:58]}  e6 {[%clk 0:02:58]} 3. Nc3 {[%clk 0:02:56]}  Bb4 {[%clk 0:02:58]} 4. f3 {[%clk 0:02:53]}  c5 {[%clk 0:02:56]} 5. d5 {[%clk 0:02:52]}  O-O {[%clk 0:02:56]} 6. e4 {[%clk 0:02:51]}  b5 {[%clk 0:02:57]} 7. cxb5 {[%clk 0:02:44]}  exd5 {[%clk 0:02:55]} 8. exd5 {[%clk 0:02:45]}  Re8+ {[%clk 0:02:54]} 9. Kf2 {[%clk 0:02:45]}  a6 {[%clk 0:02:48]} 10. bxa6 {[%clk 0:02:42]}  Nxa6 {[%clk 0:02:46]} 11. Nh3 {[%clk 0:02:26]}  d6 {[%clk 0:02:43]} 12. Nf4 {[%clk 0:02:26]}  Nc7 {[%clk 0:02:32]} 13. g4 {[%clk 0:02:24]}  Nd7 {[%clk 0:02:20]} 14. Kg3 {[%clk 0:02:21]}  Ne5 {[%clk 0:02:20]} 15. Nb5 {[%clk 0:02:12]}  Bb7 {[%clk 0:01:29]} 16. Nxc7 {[%clk 0:01:54]}  Qxc7 {[%clk 0:01:30]} 17. Bb5 {[%clk 0:01:55]}  Re7 {[%clk 0:01:29]} 18. h4 {[%clk 0:01:49]}  c4 {[%clk 0:01:26]} 19. a4 {[%clk 0:01:45]}  Qc5 {[%clk 0:01:19]} 20. Bd2 {[%clk 0:01:35]}  f5 {[%clk 0:00:47]} 21. g5 {[%clk 0:01:25]}  Ng6 {[%clk 0:00:42]} 22. Rc1 {[%clk 0:01:15]}  Bxd2 {[%clk 0:00:34]} 23. Qxd2 {[%clk 0:01:14]}  Re3 {[%clk 0:00:31]} 24. Rxc4 {[%clk 0:00:57]}  Qb6 {[%clk 0:00:31]} 25. Qd4 {[%clk 0:00:50]}  Qxd4 {[%clk 0:00:27]} 26. Rxd4 {[%clk 0:00:51]}  Ne5 {[%clk 0:00:27]} 27. Rf1 {[%clk 0:00:50]}  Rc8 {[%clk 0:00:28]} 28. Rf2 {[%clk 0:00:39]}  h6 {[%clk 0:00:27]} 29. a5 {[%clk 0:00:33]}  hxg5 {[%clk 0:00:21]} 30. hxg5 {[%clk 0:00:34]}  Ra8 {[%clk 0:00:20]} 31. b4 {[%clk 0:00:32]}  Kf7 {[%clk 0:00:20]} 32. Bf1 {[%clk 0:00:32]}  Rb3 {[%clk 0:00:18]} 33. Nd3 {[%clk 0:00:27]}  Ng6 {[%clk 0:00:17]} 34. f4 {[%clk 0:00:25]}  Ba6 {[%clk 0:00:17]} 35. Rf3 {[%clk 0:00:25]}  Re8 {[%clk 0:00:16]} 36. Kf2 {[%clk 0:00:20]}  Nh4 {[%clk 0:00:16]} 37. Re3 {[%clk 0:00:19]}  Rc8 {[%clk 0:00:16]} 38. Kg3 {[%clk 0:00:14]}  Ng6 {[%clk 0:00:15]} 39. Be2 {[%clk 0:00:12]}  Rcc3 {[%clk 0:00:16]} 40. Kf2 {[%clk 0:00:10]}  Ne7 {[%clk 0:00:16]} 41. Ke1 {[%clk 0:00:07]}  Ra3 {[%clk 0:00:14]} 42. Kd2 {[%clk 0:00:07]}  Rcb3 {[%clk 0:00:15]} 43. Kc2 {[%clk 0:00:08]}  Rc3+ {[%clk 0:00:15]} 44. Kd2 {[%clk 0:00:08]}  Rcb3 {[%clk 0:00:16]} 45. Kc2 {[%clk 0:00:09]}  Bb7 {[%clk 0:00:15]} 46. Rh3 {[%clk 0:00:08]}  Bxd5 {[%clk 0:00:14]} 47. Bf1 {[%clk 0:00:07]}  Ra2+ {[%clk 0:00:14]} 48. Kc1 {[%clk 0:00:07]}  Rba3 {[%clk 0:00:14]} 49. Kb1 {[%clk 0:00:06]}  Be4 {[%clk 0:00:14]} 50. Rxe4 {[%clk 0:00:05]}  fxe4 {[%clk 0:00:15]} 51. Nc1 {[%clk 0:00:04]}  Rxh3 {[%clk 0:00:15]} 52. Nxa2 {[%clk 0:00:04]}  Rf3 {[%clk 0:00:15]} 53. Bc4+ {[%clk 0:00:03]}  d5 {[%clk 0:00:15]} 54. Bb5 {[%clk 0:00:04]}  e3 {[%clk 0:00:15]} 55. a6 {[%clk 0:00:05]}  Nc8 {[%clk 0:00:15]} 56. Bd7 {[%clk 0:00:04]}  Nb6 {[%clk 0:00:14]} 57. Bb5 {[%clk 0:00:04]}  Rf2 {[%clk 0:00:13]} 58. Nc1 {[%clk 0:00:04]}  d4 {[%clk 0:00:13]} 59. Nd3 {[%clk 0:00:04]}  Rd2 {[%clk 0:00:13]} 60. Nc1 {[%clk 0:00:04]}  Ke6 {[%clk 0:00:13]} 61. Bc6 {[%clk 0:00:03]}  Kd6 {[%clk 0:00:13]} 62. Bf3 {[%clk 0:00:03]}  d3 {[%clk 0:00:14]} 63. b5 {[%clk 0:00:03]}  e2 {[%clk 0:00:13]} 64. Nxd3 {[%clk 0:00:03]}  Rd1+ {[%clk 0:00:09]} 65. Kc2 {[%clk 0:00:03]}  e1=Q {[%clk 0:00:10]} 66. Nxe1 {[%clk 0:00:03]}  Rxe1 {[%clk 0:00:11]} 67. Kd2 {[%clk 0:00:03]}  Ra1 {[%clk 0:00:11]} 68. Ke3 {[%clk 0:00:03]}  g6 {[%clk 0:00:11]} 69. Be2 {[%clk 0:00:04]}  Ra3+ {[%clk 0:00:11]} 70. Bd3 {[%clk 0:00:04]}  Nd5+ {[%clk 0:00:11]} 71. Kd4 {[%clk 0:00:04]}  Ra4+ {[%clk 0:00:12]} 72. Bc4 {[%clk 0:00:03]}  Nb6 {[%clk 0:00:12]} 73. Kc3 {[%clk 0:00:03]}  Rxc4+ {[%clk 0:00:13]} 74. Kb3 {[%clk 0:00:03]}  Rxf4 {[%clk 0:00:14]} 75. a7 {[%clk 0:00:04]}  Ra4 {[%clk 0:00:14]} 76. a8=Q {[%clk 0:00:03]}  Rxa8 {[%clk 0:00:14]} 77. Kb4 {[%clk 0:00:04]}  Ra4+ {[%clk 0:00:15]} 78. Kb3 {[%clk 0:00:05]}  Kc5 {[%clk 0:00:15]} 79. Kc3 {[%clk 0:00:05]}  Ra3+ {[%clk 0:00:16]} 80. Kb2 {[%clk 0:00:05]}  Rg3 {[%clk 0:00:16]} 0-1


[Site "https://www.chess.com"]

[Event "Titled Tuesday Blitz May 24 Early 2022"]
[White "Araujo Filho, Luiz Antonio Coel"]
[Black "Sjoberg, Isak"]
[WhiteFideId "2130661"]
[BlackFideId "1521640"]
[WhiteElo "2234"]
[BlackElo "2037"]
[Result "1-0"]
[Round "02"]
[TimeControl "180+1"]
[Date "2022.05.25"]
[WhiteClock "0:00:04"]
[BlackClock "0:00:28"]

1. d4 {[%clk 0:03:00]}  Nf6 {[%clk 0:02:59]} 2. Nf3 {[%clk 0:03:01]}  g6 {[%clk 0:02:58]} 3. c4 {[%clk 0:03:00]}  Bg7 {[%clk 0:02:59]} 4. Nc3 {[%clk 0:03:00]}  O-O {[%clk 0:02:59]} 5. e4 {[%clk 0:03:00]}  d6 {[%clk 0:03:00]} 6. Be2 {[%clk 0:03:01]}  e5 {[%clk 0:03:01]} 7. dxe5 {[%clk 0:03:01]}  dxe5 {[%clk 0:03:00]} 8. O-O {[%clk 0:03:02]}  Qxd1 {[%clk 0:02:54]} 9. Rxd1 {[%clk 0:03:02]}  c6 {[%clk 0:02:50]} 10. h3 {[%clk 0:02:58]}  Be6 {[%clk 0:02:49]} 11. Be3 {[%clk 0:02:57]}  Nbd7 {[%clk 0:02:48]} 12. Rac1 {[%clk 0:02:50]}  h6 {[%clk 0:02:45]} 13. b4 {[%clk 0:02:41]}  Rfd8 {[%clk 0:02:31]} 14. b5 {[%clk 0:02:37]}  Nb6 {[%clk 0:02:22]} 15. bxc6 {[%clk 0:02:10]}  bxc6 {[%clk 0:02:21]} 16. Rxd8+ {[%clk 0:02:05]}  Rxd8 {[%clk 0:02:20]} 17. Nxe5 {[%clk 0:02:05]}  Nxe4 {[%clk 0:02:19]} 18. Nxc6 {[%clk 0:01:43]}  Nxc3 {[%clk 0:02:18]} 19. Rxc3 {[%clk 0:01:42]}  Rd6 {[%clk 0:02:03]} 20. Ne7+ {[%clk 0:01:11]}  Kf8 {[%clk 0:02:02]} 21. Ra3 {[%clk 0:01:08]}  Kxe7 {[%clk 0:01:44]} 22. c5 {[%clk 0:01:07]}  Rc6 {[%clk 0:01:33]} 23. cxb6 {[%clk 0:00:58]}  axb6 {[%clk 0:01:34]} 24. Ra7+ {[%clk 0:00:57]}  Kf8 {[%clk 0:01:31]} 25. Bb5 {[%clk 0:00:49]}  Rc2 {[%clk 0:01:28]} 26. Bxb6 {[%clk 0:00:35]}  Be5 {[%clk 0:01:26]} 27. Be3 {[%clk 0:00:26]}  Rb2 {[%clk 0:01:25]} 28. Bxh6+ {[%clk 0:00:24]}  Kg8 {[%clk 0:01:25]} 29. g4 {[%clk 0:00:19]}  Rb1+ {[%clk 0:01:23]} 30. Kg2 {[%clk 0:00:19]}  Bd5+ {[%clk 0:01:23]} 31. f3 {[%clk 0:00:20]}  Rb2+ {[%clk 0:01:23]} 32. Kf1 {[%clk 0:00:20]}  Bxf3 {[%clk 0:01:20]} 33. Bc4 {[%clk 0:00:19]}  Rb1+ {[%clk 0:00:54]} 34. Kf2 {[%clk 0:00:19]}  Bd4+ {[%clk 0:00:55]} 35. Kxf3 {[%clk 0:00:19]}  Bxa7 {[%clk 0:00:55]} 36. Bb3 {[%clk 0:00:12]}  Kh7 {[%clk 0:00:54]} 37. Bf4 {[%clk 0:00:11]}  f5 {[%clk 0:00:54]} 38. gxf5 {[%clk 0:00:10]}  gxf5 {[%clk 0:00:55]} 39. h4 {[%clk 0:00:08]}  Kg6 {[%clk 0:00:54]} 40. Bc2 {[%clk 0:00:03]}  Rb2 {[%clk 0:00:53]} 41. Bb3 {[%clk 0:00:03]}  Rf2+ {[%clk 0:00:52]} 42. Kg3 {[%clk 0:00:03]}  Rb2 {[%clk 0:00:51]} 43. Bg5 {[%clk 0:00:03]}  Kh5 {[%clk 0:00:51]} 44. Kf4 {[%clk 0:00:03]}  Rf2+ {[%clk 0:00:50]} 45. Ke5 {[%clk 0:00:03]}  f4 {[%clk 0:00:48]} 46. Kf5 {[%clk 0:00:03]}  Rd2 {[%clk 0:00:28]} 47. Bf7# {[%clk 0:00:04]} 1-0


[Site "https://www.chess.com"]

[Event "Titled Tuesday Blitz May 24 Early 2022"]
[White "Araujo Sanchez, Josue"]
[Black "Namitbir Singh Walia"]
[WhiteFideId "6416896"]
[BlackFideId "35071068"]
[WhiteElo "2339"]
[BlackElo "1565"]
[Result "0-1"]
[Round "02"]
[TimeControl "180+1"]
[Date "2022.05.25"]
[WhiteClock "0:01:07"]
[BlackClock "0:00:23"]

1. e4 {[%clk 0:03:00]}  e5 {[%clk 0:03:00]} 2. Nf3 {[%clk 0:03:00]}  Nc6 {[%clk 0:03:00]} 3. Bb5 {[%clk 0:02:59]}  a6 {[%clk 0:03:00]} 4. Ba4 {[%clk 0:02:59]}  Nf6 {[%clk 0:03:01]} 5. Qe2 {[%clk 0:02:59]}  b5 {[%clk 0:02:55]} 6. Bb3 {[%clk 0:02:56]}  Be7 {[%clk 0:02:56]} 7. O-O {[%clk 0:02:56]}  O-O {[%clk 0:02:56]} 8. d3 {[%clk 0:02:55]}  d6 {[%clk 0:02:56]} 9. c3 {[%clk 0:02:55]}  Na5 {[%clk 0:02:56]} 10. Bc2 {[%clk 0:02:55]}  c5 {[%clk 0:02:56]} 11. h3 {[%clk 0:02:55]}  h6 {[%clk 0:02:56]} 12. Rd1 {[%clk 0:02:56]}  Qc7 {[%clk 0:02:56]} 13. d4 {[%clk 0:02:56]}  Re8 {[%clk 0:02:53]} 14. d5 {[%clk 0:02:55]}  Nc4 {[%clk 0:02:49]} 15. b3 {[%clk 0:02:52]}  Nb6 {[%clk 0:02:50]} 16. Nbd2 {[%clk 0:02:50]}  Bd7 {[%clk 0:02:44]} 17. Nf1 {[%clk 0:02:45]}  c4 {[%clk 0:02:42]} 18. b4 {[%clk 0:02:43]}  a5 {[%clk 0:02:42]} 19. g4 {[%clk 0:02:35]}  axb4 {[%clk 0:02:32]} 20. cxb4 {[%clk 0:02:35]}  Nh7 {[%clk 0:02:09]} 21. Ng3 {[%clk 0:02:29]}  Na4 {[%clk 0:02:00]} 22. Re1 {[%clk 0:02:23]}  Nc3 {[%clk 0:01:54]} 23. Qe3 {[%clk 0:02:19]}  Nxa2 {[%clk 0:01:53]} 24. Ba3 {[%clk 0:02:12]}  Ng5 {[%clk 0:01:24]} 25. Nxg5 {[%clk 0:02:12]}  Bxg5 {[%clk 0:01:24]} 26. Qf3 {[%clk 0:02:11]}  Bd2 {[%clk 0:01:18]} 27. Red1 {[%clk 0:01:50]}  Nxb4 {[%clk 0:00:42]} 28. Rxd2 {[%clk 0:01:44]}  c3 {[%clk 0:00:42]} 29. Re2 {[%clk 0:01:33]}  Nxc2 {[%clk 0:00:42]} 30. Rxc2 {[%clk 0:01:32]}  b4 {[%clk 0:00:42]} 31. Kg2 {[%clk 0:01:24]}  Rec8 {[%clk 0:00:30]} 32. h4 {[%clk 0:01:15]}  Rxa3 {[%clk 0:00:27]} 33. Rxa3 {[%clk 0:01:13]}  bxa3 {[%clk 0:00:28]} 34. Ne2 {[%clk 0:01:10]}  Qa5 {[%clk 0:00:22]} 35. Rxc3 {[%clk 0:01:09]}  Rxc3 {[%clk 0:00:23]} 36. Qxc3 {[%clk 0:01:09]}  Qxc3 {[%clk 0:00:22]} 37. Nxc3 {[%clk 0:01:10]}  Bxg4 {[%clk 0:00:23]} 38. f3 {[%clk 0:01:07]}  Bd7 {[%clk 0:00:23]} 0-1


[Site "https://www.chess.com"]

[Event "Titled Tuesday Blitz May 24 Early 2022"]
[White "Barp, Alberto"]
[Black "Sjugirov, Sanan"]
[WhiteFideId "872555"]
[BlackFideId "4189302"]
[WhiteElo "2229"]
[BlackElo "2602"]
[Result "1/2-1/2"]
[Round "02"]
[TimeControl "180+1"]
[Date "2022.05.24"]
[WhiteClock "0:00:08"]
[BlackClock "0:00:08"]

1. Nf3 {[%clk 0:03:00]}  Nf6 {[%clk 0:02:58]} 2. c4 {[%clk 0:03:00]}  c5 {[%clk 0:02:58]} 3. Nc3 {[%clk 0:03:00]}  e6 {[%clk 0:02:58]} 4. e3 {[%clk 0:03:00]}  d5 {[%clk 0:02:57]} 5. d4 {[%clk 0:03:00]}  a6 {[%clk 0:02:56]} 6. cxd5 {[%clk 0:02:58]}  exd5 {[%clk 0:02:57]} 7. Be2 {[%clk 0:02:55]}  Nc6 {[%clk 0:02:55]} 8. O-O {[%clk 0:02:55]}  cxd4 {[%clk 0:02:36]} 9. exd4 {[%clk 0:02:50]}  Be7 {[%clk 0:02:34]} 10. h3 {[%clk 0:02:50]}  O-O {[%clk 0:02:34]} 11. Bf4 {[%clk 0:02:50]}  Be6 {[%clk 0:02:30]} 12. Ne5 {[%clk 0:02:43]}  Rc8 {[%clk 0:02:29]} 13. Rc1 {[%clk 0:02:40]}  Qb6 {[%clk 0:02:25]} 14. Na4 {[%clk 0:02:36]}  Qa5 {[%clk 0:02:16]} 15. Nxc6 {[%clk 0:02:32]}  Rxc6 {[%clk 0:02:16]} 16. Rxc6 {[%clk 0:02:31]}  bxc6 {[%clk 0:02:17]} 17. a3 {[%clk 0:02:28]}  Ne4 {[%clk 0:02:07]} 18. b4 {[%clk 0:02:26]}  Qd8 {[%clk 0:02:07]} 19. Qc2 {[%clk 0:02:21]}  Bd7 {[%clk 0:01:51]} 20. Bxa6 {[%clk 0:02:17]}  Bf6 {[%clk 0:01:46]} 21. Rd1 {[%clk 0:02:16]}  Bh4 {[%clk 0:01:42]} 22. Be3 {[%clk 0:02:13]}  f5 {[%clk 0:01:38]} 23. f3 {[%clk 0:02:06]}  f4 {[%clk 0:01:36]} 24. Bc1 {[%clk 0:02:04]}  Nf2 {[%clk 0:01:30]} 25. Rd2 {[%clk 0:01:57]}  Nxh3+ {[%clk 0:01:22]} 26. gxh3 {[%clk 0:01:56]}  Bxh3 {[%clk 0:01:23]} 27. Rh2 {[%clk 0:01:36]}  Qg5+ {[%clk 0:01:19]} 28. Kh1 {[%clk 0:01:36]}  Re8 {[%clk 0:01:15]} 29. Bd2 {[%clk 0:01:24]}  Bf5 {[%clk 0:00:43]} 30. Bd3 {[%clk 0:01:16]}  Qg3 {[%clk 0:00:35]} 31. Bxf5 {[%clk 0:01:08]}  Qxf3+ {[%clk 0:00:35]} 32. Kg1 {[%clk 0:00:53]}  Bg3 {[%clk 0:00:35]} 33. Bxh7+ {[%clk 0:00:21]}  Kh8 {[%clk 0:00:34]} 34. Rg2 {[%clk 0:00:13]}  Re2 {[%clk 0:00:33]} 35. Rxe2 {[%clk 0:00:11]}  Qxe2 {[%clk 0:00:34]} 36. Bxf4 {[%clk 0:00:08]}  Qe1+ {[%clk 0:00:32]} 37. Kg2 {[%clk 0:00:08]}  Bxf4 {[%clk 0:00:33]} 38. Qf2 {[%clk 0:00:08]}  Qxf2+ {[%clk 0:00:13]} 39. Kxf2 {[%clk 0:00:09]}  Kxh7 {[%clk 0:00:14]} 40. Nc5 {[%clk 0:00:09]}  g5 {[%clk 0:00:06]} 41. a4 {[%clk 0:00:08]}  g4 {[%clk 0:00:06]} 42. a5 {[%clk 0:00:08]}  Kg6 {[%clk 0:00:03]} 43. a6 {[%clk 0:00:07]}  Bb8 {[%clk 0:00:03]} 44. Nd7 {[%clk 0:00:03]}  Ba7 {[%clk 0:00:03]} 45. Ne5+ {[%clk 0:00:04]}  Kf5 {[%clk 0:00:03]} 46. Nxc6 {[%clk 0:00:05]}  Bb6 {[%clk 0:00:03]} 47. a7 {[%clk 0:00:05]}  Bxa7 {[%clk 0:00:03]} 48. Nxa7 {[%clk 0:00:06]}  Ke4 {[%clk 0:00:04]} 49. Nc6 {[%clk 0:00:05]}  g3+ {[%clk 0:00:05]} 50. Kxg3 {[%clk 0:00:05]}  Kd3 {[%clk 0:00:06]} 51. b5 {[%clk 0:00:05]}  Kc4 {[%clk 0:00:07]} 52. b6 {[%clk 0:00:06]}  Kb5 {[%clk 0:00:08]} 53. b7 {[%clk 0:00:07]}  Ka6 {[%clk 0:00:08]} 54. b8=Q {[%clk 0:00:08]} 1/2-1/2


[Site "https://www.chess.com"]

[Event "Titled Tuesday Blitz May 24 Early 2022"]
[White "Barria Zuniga, Daniel"]
[Black "Kuznetsov, Mikhail"]
[WhiteFideId "3400816"]
[BlackFideId "4117190"]
[WhiteElo "2414"]
[BlackElo "1981"]
[Result "1/2-1/2"]
[Round "02"]
[TimeControl "180+1"]
[Date "2022.05.25"]
[WhiteClock "0:00:06"]
[BlackClock "0:00:04"]

1. c4 {[%clk 0:02:54]}  Nf6 {[%clk 0:02:58]} 2. g3 {[%clk 0:02:53]}  g6 {[%clk 0:02:58]} 3. Bg2 {[%clk 0:02:53]}  d5 {[%clk 0:02:59]} 4. cxd5 {[%clk 0:02:52]}  Nxd5 {[%clk 0:02:59]} 5. Nf3 {[%clk 0:02:52]}  Bg7 {[%clk 0:02:58]} 6. O-O {[%clk 0:02:53]}  O-O {[%clk 0:02:57]} 7. Nc3 {[%clk 0:02:53]}  Nb6 {[%clk 0:02:56]} 8. d4 {[%clk 0:02:52]}  Nc6 {[%clk 0:02:55]} 9. Bf4 {[%clk 0:02:52]}  Nxd4 {[%clk 0:02:52]} 10. Nxd4 {[%clk 0:02:52]}  Bxd4 {[%clk 0:02:51]} 11. Nb5 {[%clk 0:02:51]}  Bxb2 {[%clk 0:02:46]} 12. Rb1 {[%clk 0:02:48]}  e5 {[%clk 0:02:34]} 13. Qxd8 {[%clk 0:02:38]}  Rxd8 {[%clk 0:02:33]} 14. Bg5 {[%clk 0:02:38]}  f6 {[%clk 0:02:23]} 15. Bxf6 {[%clk 0:02:36]}  Rf8 {[%clk 0:02:23]} 16. Be7 {[%clk 0:02:30]}  Rf7 {[%clk 0:02:19]} 17. Bc5 {[%clk 0:02:17]}  Bd4 {[%clk 0:02:15]} 18. Nxd4 {[%clk 0:02:00]}  exd4 {[%clk 0:02:16]} 19. Bxb6 {[%clk 0:02:00]}  axb6 {[%clk 0:02:14]} 20. Bd5 {[%clk 0:02:00]}  Ra5 {[%clk 0:02:02]} 21. Bxf7+ {[%clk 0:01:57]}  Kxf7 {[%clk 0:02:03]} 22. Rfc1 {[%clk 0:01:57]}  c6 {[%clk 0:02:02]} 23. Rxb6 {[%clk 0:01:50]}  Rxa2 {[%clk 0:01:58]} 24. Kf1 {[%clk 0:01:38]}  Ke6 {[%clk 0:01:48]} 25. Rd1 {[%clk 0:01:17]}  Ke5 {[%clk 0:01:44]} 26. e3 {[%clk 0:01:15]}  dxe3 {[%clk 0:01:41]} 27. fxe3 {[%clk 0:01:06]}  Rxh2 {[%clk 0:01:40]} 28. Rd8 {[%clk 0:01:06]}  Bh3+ {[%clk 0:01:38]} 29. Ke1 {[%clk 0:01:04]}  Rg2 {[%clk 0:01:27]} 30. Rxb7 {[%clk 0:00:57]}  Rxg3 {[%clk 0:01:26]} 31. Kf2 {[%clk 0:00:57]}  Rg2+ {[%clk 0:01:21]} 32. Kf3 {[%clk 0:00:57]}  Rg1 {[%clk 0:00:53]} 33. Re7+ {[%clk 0:00:53]}  Kf6 {[%clk 0:00:45]} 34. Rc7 {[%clk 0:00:53]}  Bf5 {[%clk 0:00:30]} 35. e4 {[%clk 0:00:43]}  Bg4+ {[%clk 0:00:19]} 36. Kf2 {[%clk 0:00:42]}  Rc1 {[%clk 0:00:19]} 37. Ke3 {[%clk 0:00:19]}  h5 {[%clk 0:00:16]} 38. Rd6+ {[%clk 0:00:14]}  Ke5 {[%clk 0:00:10]} 39. Rdxc6 {[%clk 0:00:14]}  Re1+ {[%clk 0:00:10]} 40. Kd3 {[%clk 0:00:14]}  Rd1+ {[%clk 0:00:04]} 41. Ke3 {[%clk 0:00:12]}  Re1+ {[%clk 0:00:04]} 42. Kd3 {[%clk 0:00:12]}  Rd1+ {[%clk 0:00:05]} 43. Kc2 {[%clk 0:00:12]}  Kxe4 {[%clk 0:00:03]} 44. Rxg6 {[%clk 0:00:12]}  Rh1 {[%clk 0:00:02]} 45. Rc4+ {[%clk 0:00:10]}  Kf3 {[%clk 0:00:03]} 46. Rf6+ {[%clk 0:00:09]}  Kg2 {[%clk 0:00:03]} 47. Kd2 {[%clk 0:00:08]}  Rf1 {[%clk 0:00:03]} 48. Rxf1 {[%clk 0:00:07]}  Kxf1 {[%clk 0:00:04]} 49. Ke3 {[%clk 0:00:07]}  Kg2 {[%clk 0:00:05]} 50. Kf4 {[%clk 0:00:06]}  Be2 {[%clk 0:00:03]} 51. Rc2 {[%clk 0:00:06]}  Kf1 {[%clk 0:00:04]} 52. Ke3 {[%clk 0:00:05]}  Bg4 {[%clk 0:00:04]} 53. Rf2+ {[%clk 0:00:04]}  Kg1 {[%clk 0:00:04]} 54. Rb2 {[%clk 0:00:04]}  Kf1 {[%clk 0:00:02]} 55. Kf4 {[%clk 0:00:04]}  Ke1 {[%clk 0:00:02]} 56. Kg3 {[%clk 0:00:04]}  Kd1 {[%clk 0:00:02]} 57. Rf2 {[%clk 0:00:04]}  Be2 {[%clk 0:00:01]} 58. Rh2 {[%clk 0:00:03]}  Kd2 {[%clk 0:00:02]} 59. Kf4 {[%clk 0:00:02]}  Kd3 {[%clk 0:00:02]} 60. Rh3+ {[%clk 0:00:03]}  Kd2 {[%clk 0:00:03]} 61. Rh1 {[%clk 0:00:03]}  Bg4 {[%clk 0:00:03]} 62. Rg1 {[%clk 0:00:03]}  Kd3 {[%clk 0:00:03]} 63. Kg3 {[%clk 0:00:03]}  Ke3 {[%clk 0:00:04]} 64. Ra1 {[%clk 0:00:03]}  Kd3 {[%clk 0:00:04]} 65. Ra7 {[%clk 0:00:04]}  Ke4 {[%clk 0:00:04]} 66. Re7+ {[%clk 0:00:04]}  Kd4 {[%clk 0:00:05]} 67. Kf4 {[%clk 0:00:02]}  Kd3 {[%clk 0:00:05]} 68. Re1 {[%clk 0:00:03]}  Kd2 {[%clk 0:00:05]} 69. Re8 {[%clk 0:00:03]}  Kd3 {[%clk 0:00:05]} 70. Rd8+ {[%clk 0:00:03]}  Kc4 {[%clk 0:00:06]} 71. Ke4 {[%clk 0:00:03]}  Kc5 {[%clk 0:00:05]} 72. Rf8 {[%clk 0:00:03]}  Kd6 {[%clk 0:00:03]} 73. Kf4 {[%clk 0:00:02]}  Ke7 {[%clk 0:00:03]} 74. Rh8 {[%clk 0:00:02]}  Ke6 {[%clk 0:00:04]} 75. Rh6+ {[%clk 0:00:02]}  Kd5 {[%clk 0:00:03]} 76. Rb6 {[%clk 0:00:02]}  Kc5 {[%clk 0:00:03]} 77. Rb2 {[%clk 0:00:03]}  Kd4 {[%clk 0:00:03]} 78. Rd2+ {[%clk 0:00:03]}  Kc5 {[%clk 0:00:03]} 79. Ke3 {[%clk 0:00:04]}  Kc6 {[%clk 0:00:03]} 80. Rd4 {[%clk 0:00:04]}  Kc5 {[%clk 0:00:03]} 81. Re4 {[%clk 0:00:04]}  Kd5 {[%clk 0:00:03]} 82. Rf4 {[%clk 0:00:04]}  Ke5 {[%clk 0:00:04]} 83. Ra4 {[%clk 0:00:04]}  Kd5 {[%clk 0:00:03]} 84. Ra5+ {[%clk 0:00:04]}  Kc4 {[%clk 0:00:03]} 85. Kf4 {[%clk 0:00:05]}  Kb4 {[%clk 0:00:03]} 86. Ra7 {[%clk 0:00:05]}  Kc5 {[%clk 0:00:03]} 87. Rg7 {[%clk 0:00:06]}  Kc6 {[%clk 0:00:04]} 88. Rxg4 {[%clk 0:00:06]}  hxg4 {[%clk 0:00:04]} 89. Kxg4 {[%clk 0:00:06]} 1/2-1/2


[Site "https://www.chess.com"]